bitfinex/quotes_SOLUSD_20250607
["timestamp","ask_amount","ask_price","bid_price","bid_amount"]
[1749300401496,0.10128,152.39,152.37,7.71291303]
[1749300401497,0.10128,152.39,152.37,6.56292132]
[1749300401811,0.10128,152.39,152.38,40.76]
[1749300402412,0.10128,152.39,152.38,48.47291303]
[1749300403636,0.10128,152.39,152.38,55.03545404]
[1749300405231,0.10128,152.39,152.38,55.31977718]
[1749300405436,0.10128,152.39,152.38,47.32254101]
[1749300405609,0.10128,152.39,152.38,55.03545404]
[1749300405924,0.10128,152.39,152.38,40.76]
[1749300408105,0.10128,152.39,152.37,40.88]
[1749300410817,18.64964886,152.38,152.35,40.84]
[1749300411131,26.36256189,152.38,152.35,40.84]
[1749300411707,26.36256189,152.38,152.33,7.71291303]
[1749300411903,7.71291303,152.37,152.34,40.84]
[1749300412108,7.71291303,152.37,152.33,48.55291303]
[1749300412304,7.71291303,152.37,152.33,7.71291303]
[1749300412522,7.71291303,152.36,152.33,40.84]
[1749300413214,6.56254101,152.38,152.33,40.84]
[1749300413417,7.71291303,152.36,152.33,40.84]
[1749300414221,7.71291303,152.35,152.32,40.84]
[1749300417043,7.71291303,152.35,152.32,47.40508152]
[1749300418115,26.36256189,152.36,152.32,47.40508152]
[1749300418466,26.36256189,152.36,152.32,6.56508152]
[1749300419649,7.71291303,152.35,152.32,6.56508152]
[1749300419822,7.71291303,152.35,152.31,55.0783797]
[1749300420445,7.71291303,152.35,152.31,47.36546667]
[1749300420620,7.71291303,152.35,152.31,55.0783797]
[1749300421526,7.71291303,152.35,152.31,55.0583797]
[1749300422225,7.71291303,152.35,152.3,6.56589392]
[1749300422226,26.36256189,152.34,152.3,6.56589392]
[1749300422434,26.36256189,152.34,152.3,14.27880695]
[1749300422641,18.64964886,152.34,152.31,7.71291303]
[1749300422934,18.64964886,152.34,152.3,14.27880695]
[1749300423132,26.36256189,152.34,152.3,55.03880695]
[1749300423442,26.36256189,152.34,152.28,16.41703821]
[1749300423443,7.71291303,152.32,152.28,6.5664658]
[1749300424047,7.71291303,152.31,152.28,6.5664658]
[1749300424757,18.64964886,152.34,152.28,14.27937883]
[1749300424937,18.64964886,152.32,152.29,7.71291303]
[1749300425255,1.556,152.35,152.3,7.71291303]
[1749300425433,18.64964886,152.34,152.31,7.71291303]
[1749300425631,18.64964886,152.34,152.31,48.49291303]
[1749300425862,18.64964886,152.34,152.32,6.56512605]
[1749300426059,10.78,152.36,152.33,7.71291303]
[1749300426359,26.36256189,152.37,152.33,7.71291303]
[1749300426656,26.36256189,152.37,152.32,14.27803908]
[1749300427157,7.71291303,152.36,152.32,14.27803908]
[1749300432266,7.71291303,152.36,152.32,6.56512605]
[1749300435062,7.71291303,152.35,152.32,6.56512605]
[1749300437043,18.64964886,152.37,152.32,14.27803908]
[1749300437366,18.64964886,152.38,152.32,14.27803908]
[1749300437546,7.71291303,152.36,152.32,14.27803908]
[1749300438477,7.71291303,152.36,152.32,6.56512605]
[1749300441070,7.71291303,152.35,152.32,6.56512605]
[1749300441375,7.71291303,152.35,152.31,55.05836338]
[1749300441879,7.71291303,152.35,152.31,47.34545035]
[1749300443842,26.36256189,152.34,152.29,14.27915465]
[1749300444043,7.71291303,152.32,152.29,40.78]
[1749300445356,7.71291303,152.32,152.29,6.56634492]
[1749300445762,20.25804886,152.34,152.29,6.56634492]
[1749300445963,7.71291303,152.33,152.29,14.27925795]
[1749300447571,7.71291303,152.33,152.29,6.56634492]
[1749300450561,7.71291303,152.33,152.29,14.27925795]
[1749300453384,7.71291303,152.33,152.29,6.56634492]
[1749300453568,7.71291303,152.32,152.29,6.56634492]
[1749300457380,18.64964886,152.34,152.3,7.71291303]
[1749300457762,18.64964886,152.34,152.31,6.56555708]
[1749300458572,26.36256189,152.34,152.31,6.56555708]
[1749300458775,18.64964886,152.34,152.31,6.56555708]
[1749300461787,7.71291303,152.34,152.31,6.56555708]
[1749300463992,7.71291303,152.34,152.3,6.56598818]
[1749300467697,25.21310704,152.36,152.29,6.56641933]
[1749300467995,7.71291303,152.33,152.29,14.27933236]
[1749300468765,25.21310704,152.36,152.29,14.27933236]
[1749300468968,7.71291303,152.33,152.29,6.56641933]
[1749300469795,7.71291303,152.32,152.29,6.56641933]
[1749300471297,25.21358453,152.35,152.29,6.56641933]
[1749300471473,7.71291303,152.32,152.29,6.56641933]
[1749300471967,7.71291303,152.32,152.29,47.32641933]
[1749300473901,7.71291303,152.31,152.29,47.32641933]
[1749300475080,7.71291303,152.31,152.29,40.76]
[1749300476080,7.71291303,152.31,152.27,6.5672818]
[1749300476281,7.71291303,152.31,152.28,40.76]
[1749300477305,4.94707789,152.31,152.28,40.76]
[1749300478599,4.94707789,152.31,152.28,47.32642046]
[1749300479289,4.94707789,152.31,152.28,6.56642046]
[1749300479587,4.94707789,152.31,152.28,47.32642046]
[1749300480295,6.56434974,152.34,152.28,47.32642046]
[1749300480473,4.94707789,152.31,152.28,47.32642046]
[1749300482896,4.94707789,152.3,152.27,6.5672818]
[1749300483577,4.94707789,152.29,152.24,22.03087789]
[1749300483782,4.94707789,152.29,152.25,40.76]
[1749300484019,4.94707789,152.29,152.25,47.3279943]
[1749300486806,4.94707789,152.28,152.25,47.3279943]
[1749300488186,4.94707789,152.26,152.25,6.5679943]
[1749300489206,7.73478571,152.26,152.24,47.32854233]
[1749300489416,7.73478571,152.26,152.24,6.56854233]
[1749300489997,7.73478571,152.25,152.23,47.32894827]
[1749300490202,18.64964886,152.27,152.23,6.56894827]
[1749300490396,7.73478571,152.26,152.23,6.56894827]
[1749300491315,7.73478571,152.26,152.23,40.76]
[1749300492016,6.56646708,152.29,152.23,40.76]
[1749300492215,7.73478571,152.26,152.23,40.76]
[1749300493110,7.73478571,152.26,152.23,47.3287871]
[1749300493897,7.73478571,152.24,152.22,40.76]
[1749300494790,7.73478571,152.23,152.2,17.31018736]
[1749300495022,7.73478571,152.23,152.21,6.5697306]
[1749300495311,7.73478571,152.23,152.21,47.3297306]
[1749300495699,7.73478571,152.24,152.21,47.3297306]
[1749300495898,18.64964886,152.27,152.21,47.3297306]
[1749300496106,18.64964886,152.27,152.21,55.06451631]
[1749300496107,7.73478571,152.26,152.21,55.06451631]
[1749300496508,1.5086,152.32,152.23,7.73478571]
[1749300496702,7.73478571,152.28,152.23,7.73478571]
[1749300496903,7.73478571,152.27,152.22,7.73478571]
[1749300497097,7.73478571,152.27,152.23,6.56900742]
[1749300497491,32.56625391,152.3,152.23,6.56900742]
[1749300497735,7.73478571,152.26,152.23,6.56900742]
[1749300498021,7.73478571,152.27,152.23,14.30379313]
[1749300499522,7.73478571,152.29,152.24,7.73478571]
[1749300499707,7.73478571,152.29,152.25,40.76]
[1749300500024,7.73478571,152.28,152.25,40.76]
[1749300501043,7.73478571,152.28,152.25,47.32778654]
[1749300501711,7.73478571,152.29,152.25,73.32778654]
[1749300502423,7.73478571,152.3,152.25,81.06257225]
[1749300502609,26.38443457,152.31,152.26,7.73478571]
[1749300502818,1.5086,152.32,152.25,73.32778654]
[1749300502819,18.64964886,152.32,152.28,7.73478571]
[1749300503138,18.64964886,152.33,152.29,55.06120504]
[1749300503301,18.64964886,152.33,152.3,40.76]
[1749300503498,1.5728,152.36,152.3,48.49478571]
[1749300503732,18.64964886,152.35,152.31,7.73478571]
[1749300504820,18.64964886,152.35,152.32,6.56512605]
[1749300505343,10.74,152.37,152.32,6.56512605]
[1749300505525,18.64964886,152.37,152.33,7.73478571]
[1749300505730,26.38443457,152.37,152.34,40.76]
[1749300506747,26.38443457,152.37,152.34,47.32392789]
[1749300507113,18.64964886,152.37,152.34,47.32392789]
[1749300507332,7.73478571,152.38,152.34,47.32392789]
[1749300507644,7.73478571,152.37,152.34,47.32392789]
[1749300508942,7.73478571,152.38,152.34,47.32392789]
[1749300510553,7.83606571,152.39,152.34,55.0587136]
[1749300511325,7.73478571,152.37,152.34,47.32392789]
[1749300511548,7.73478571,152.37,152.34,40.76]
[1749300511858,7.73478571,152.36,152.34,40.76]
[1749300516355,7.73478571,152.35,152.34,40.76]
[1749300517346,7.73478571,152.36,152.34,40.76]
[1749300517650,7.73478571,152.37,152.34,47.32411863]
[1749300517949,18.64964886,152.36,152.34,47.32411863]
[1749300518136,7.73478571,152.37,152.34,47.32411863]
[1749300519352,7.73478571,152.37,152.34,40.76]
[1749300520260,7.73478571,152.37,152.34,47.32422665]
[1749300520945,7.73478571,152.37,152.34,40.76]
[1749300521345,7.73478571,152.37,152.34,47.32422638]
[1749300522836,7.73478571,152.36,152.34,40.76]
[1749300523255,7.73478571,152.37,152.34,47.32423901]
[1749300525143,7.73478571,152.36,152.34,40.76]
[1749300531875,7.73478571,152.36,152.32,6.56512605]
[1749300532047,7.73478571,152.36,152.33,40.72]
[1749300533167,7.73478571,152.36,152.33,47.28462998]
[1749300534560,18.64964886,152.37,152.33,47.28462998]
[1749300534757,7.73478571,152.37,152.33,55.01941569]
[1749300535747,26.38443457,152.38,152.33,55.01941569]
[1749300536755,7.73478571,152.37,152.33,55.01941569]
[1749300537976,7.73478571,152.37,152.33,47.28462998]
[1749300540383,7.73478571,152.36,152.33,47.28462998]
[1749300541262,4.94429404,152.36,152.33,47.28462998]
[1749300541651,4.94429404,152.37,152.33,47.28462998]
[1749300544576,4.94429404,152.36,152.33,47.28462998]
[1749300545001,4.94429404,152.36,152.33,40.72]
[1749300545285,4.94429404,152.36,152.33,47.28469277]
[1749300545876,4.94429404,152.37,152.33,47.28469277]
[1749300547782,4.94429404,152.36,152.33,47.28469277]
[1749300548682,23.5939429,152.35,152.33,40.72]
[1749300550704,18.64964886,152.35,152.33,40.72]
[1749300551599,4.94429404,152.36,152.33,47.28464471]
[1749300551803,18.64964886,152.36,152.33,47.28464471]
[1749300552005,4.94429404,152.37,152.33,47.28464471]
[1749300553807,23.5939429,152.38,152.33,52.22893875]
[1749300556323,5.04557404,152.39,152.34,4.94429404]
[1749300556503,18.75092886,152.39,152.34,4.94429404]
[1749300556817,23.6952229,152.39,152.34,4.94429404]
[1749300557198,0.10128,152.39,152.36,4.94429404]
[1749300557398,0.10128,152.39,152.37,40.7]
[1749300559527,6.6634247,152.39,152.37,40.7]
[1749300559733,33.03489845,152.39,152.37,40.7]
[1749300560718,25.31307356,152.39,152.37,40.7]
[1749300561017,33.03489845,152.39,152.37,40.7]
[1749300561717,14.2843659,152.38,152.37,40.7]
[1749300563497,18.64964886,152.37,152.36,40.68]
[1749300563691,32.93444546,152.37,152.36,40.68]
[1749300563912,32.93444546,152.37,152.31,6.56539739]
[1749300564105,7.72182489,152.35,152.32,40.68]
[1749300564513,7.72182489,152.35,152.3,40.287675]
[1749300564815,7.72182489,152.35,152.33,40.68]
[1749300565196,7.72182489,152.35,152.31,7.72182489]
[1749300565399,7.72182489,152.35,152.32,40.68]
[1749300566015,7.72182489,152.35,152.32,47.24480203]
[1749300566211,7.72182489,152.36,152.32,47.24480203]
[1749300566420,7.72182489,152.36,152.32,54.96662692]
[1749300567318,7.72182489,152.37,152.33,7.72182489]
[1749300568816,7.72182489,152.37,152.33,14.28631075]
[1749300569716,0.10128,152.39,152.33,14.28631075]
[1749300569921,7.82310489,152.39,152.34,7.72182489]
[1749300570221,0.10128,152.39,152.35,7.72182489]
[1749300570411,0.10128,152.39,152.36,40.68]
[1749300571427,0.10128,152.39,152.36,48.40182489]
[1749300572304,0.10128,152.39,152.36,54.96492886]
[1749300573004,0.10128,152.39,152.36,47.24310397]
[1749300576150,7.82310489,152.39,152.36,40.68]
[1749300577429,0.10128,152.39,152.36,54.96506559]
[1749300585441,0.10128,152.39,152.37,7.72182489]
[1749300585928,0.10128,152.39,152.36,54.96506559]
[1749300586924,0.10128,152.39,152.36,47.2432407]
[1749300588046,0.10128,152.39,152.36,54.96506559]
[1749300589140,0.10128,152.39,152.38,7.72182489]
[1749300590126,0.10128,152.39,152.38,14.2843659]
[1749300591532,0.10128,152.39,152.37,14.28464561]
[1749300591930,0.10128,152.39,152.36,7.72182489]
[1749300592139,0.10128,152.39,152.38,40.66]
[1749300595430,0.10128,152.39,152.36,14.28519173]
[1749300595652,0.10128,152.39,152.37,40.64]
[1749300601059,0.10128,152.39,152.38,40.64]
[1749300601428,0.10128,152.39,152.38,48.64614803]
[1749300601838,0.10128,152.39,152.38,56.54114803]
[1749300602050,0.10128,152.39,152.38,67.22114803]
[1749300602361,0.10128,152.39,152.38,73.78368904]
[1749300603286,0.10128,152.39,152.38,92.9333379]
[1749300603430,0.10128,152.39,152.38,74.28368904]
[1749300603631,0.10128,152.39,152.38,100.28368904]
[1749300608731,0.10128,152.39,152.38,92.1043659]
[1749300608935,0.10128,152.39,152.38,25.4643659]
[1749300609162,0.10128,152.39,152.38,66.0843659]
[1749300612144,0.10128,152.39,152.38,47.68254101]
[1749300612350,0.10128,152.39,152.38,47.18254101]
[1749300612951,0.10128,152.39,152.38,6.56254101]
[1749300613151,0.10128,152.39,152.38,47.18254101]
[1749300613553,0.10128,152.39,152.38,40.62]
[1749300614355,0.10128,152.39,152.36,14.28509897]
[1749300614556,7.82310489,152.39,152.37,40.62]
[1749300614969,7.72182489,152.38,152.34,24.94591974]
[1749300615152,7.72182489,152.38,152.37,40.62]
[1749300615668,14.2845232,152.38,152.32,14.28658105]
[1749300615867,7.72182489,152.36,152.33,40.62]
[1749300616063,7.72182489,152.36,152.34,40.62]
[1749300618055,7.72182489,152.35,152.34,40.62]
[1749300618256,7.72182489,152.35,152.31,6.56544549]
[1749300618575,7.72182489,152.34,152.32,40.62]
[1749300619258,7.72182489,152.33,152.3,17.22583385]
[1749300619458,6.56393335,152.35,152.32,40.62]
[1749300619459,7.72182489,152.34,152.32,40.62]
[1749300619863,7.72182489,152.33,152.3,17.22583385]
[1749300620170,7.72182489,152.33,152.31,40.62]
[1749300624074,7.72182489,152.32,152.28,6.5667108]
[1749300624274,7.72182489,152.32,152.31,40.62]
[1749300624775,7.72182489,152.32,152.29,40.62]
[1749300625092,7.72182489,152.3,152.29,40.62]
[1749300625254,7.72182489,152.3,152.27,6.56717863]
[1749300625451,7.72182489,152.3,152.28,40.62]
[1749300625797,7.72182489,152.31,152.28,47.18664599]
[1749300626087,7.72182489,152.32,152.28,47.18664599]
[1749300626465,7.72182489,152.31,152.28,47.18664599]
[1749300627068,18.64964886,152.34,152.28,47.18664599]
[1749300627259,7.72182489,152.31,152.28,47.18664599]
[1749300627669,7.72182489,152.31,152.28,6.56664599]
[1749300627870,7.72182489,152.31,152.29,40.62]
[1749300628580,7.72182489,152.31,152.29,47.18621455]
[1749300628889,7.72182489,152.33,152.29,47.18621455]
[1749300629087,7.72182489,152.33,152.29,54.90803944]
[1749300629587,7.72182489,152.33,152.29,47.18621455]
[1749300629955,7.72182489,152.32,152.29,47.18621455]
[1749300633851,7.72182489,152.31,152.29,40.62]
[1749300636258,7.72182489,152.31,152.29,47.18640016]
[1749300637282,7.72182489,152.31,152.29,40.62]
[1749300637454,7.72182489,152.32,152.29,40.62]
[1749300638061,7.72182489,152.31,152.29,40.62]
[1749300638282,26.37147375,152.31,152.29,40.62]
[1749300638486,7.72182489,152.3,152.29,40.62]
[1749300638698,26.37147375,152.3,152.28,40.62]
[1749300638853,7.72182489,152.29,152.24,7.72182489]
[1749300639054,7.72182489,152.28,152.25,40.62]
[1749300639703,7.72182489,152.28,152.26,40.62]
[1749300641367,7.72182489,152.28,152.26,47.18749513]
[1749300641562,7.72182489,152.29,152.26,47.18749513]
[1749300641997,44.64964886,152.34,152.27,7.72182489]
[1749300642197,7.72182489,152.31,152.27,7.72182489]
[1749300642486,7.72182489,152.31,152.28,6.56685053]
[1749300645678,7.72182489,152.31,152.28,22.98397687]
[1749300646389,7.72182489,152.32,152.28,30.70580176]
[1749300646988,7.72182489,152.32,152.28,22.98397687]
[1749300647293,7.72182489,152.32,152.28,30.70580176]
[1749300648280,18.64964886,152.34,152.29,7.72182489]
[1749300648494,18.64964886,152.34,152.3,48.34182489]
[1749300648495,26.37147375,152.34,152.3,48.34182489]
[1749300648794,18.64964886,152.34,152.31,6.56555708]
[1749300650480,26.37147375,152.34,152.31,6.56555708]
[1749300652776,18.64964886,152.34,152.31,6.56555708]
[1749300654395,18.38182489,152.36,152.31,14.28738197]
[1749300655790,18.38182489,152.36,152.31,30.70127468]
[1749300656783,18.38182489,152.36,152.31,14.28738197]
[1749300656997,18.64964886,152.34,152.3,54.90772786]
[1749300657180,26.37147375,152.34,152.3,54.90772786]
[1749300657695,26.37147375,152.34,152.3,40.62]
[1749300657895,7.72182489,152.33,152.3,40.6]
[1749300661006,18.64964886,152.32,152.28,14.28856112]
[1749300661202,18.64964886,152.32,152.29,40.6]
[1749300661405,7.72182489,152.33,152.29,48.32182489]
[1749300661611,26.37147375,152.34,152.29,48.32182489]
[1749300662391,26.37147375,152.34,152.3,7.72182489]
[1749300662590,26.37147375,152.34,152.3,14.2873936]
[1749300663004,26.37147375,152.34,152.3,6.56556871]
[1749300663517,7.72182489,152.33,152.29,48.32182489]
[1749300663810,7.72182489,152.33,152.3,40.6]
[1749300665086,25.21376451,152.35,152.3,47.16593774]
[1749300665286,7.72182489,152.34,152.3,40.6]
[1749300666697,7.72182489,152.33,152.3,40.6]
[1749300668802,14.28658266,152.33,152.3,40.6]
[1749300669415,7.72182489,152.33,152.3,40.6]
[1749300669815,18.64964886,152.35,152.3,47.16572616]
[1749300669993,7.72182489,152.34,152.3,54.88755105]
[1749300670193,7.72182489,152.34,152.3,40.6]
[1749300670524,7.72182489,152.34,152.3,47.16587094]
[1749300671008,25.21349958,152.35,152.3,40.6]
[1749300671196,7.72182489,152.34,152.3,40.6]
[1749300673323,14.2861537,152.34,152.3,40.6]
[1749300673926,26.37147375,152.33,152.3,40.6]
[1749300674809,26.37147375,152.33,152.31,40.58]
[1749300675713,32.93619636,152.33,152.31,40.58]
[1749300676302,26.37147375,152.32,152.31,40.58]
[1749300676513,18.64964886,152.31,152.3,40.58]
[1749300676723,18.64964886,152.31,152.26,50.94928957]
[1749300676724,26.37147375,152.31,152.26,50.94928957]
[1749300676903,18.64964886,152.31,152.27,40.58]
[1749300677107,18.64964886,152.31,152.28,40.58]
[1749300678104,18.64964886,152.31,152.28,47.14655326]
[1749300678304,18.64964886,152.31,152.28,40.58]
[1749300679034,7.72182489,152.31,152.28,40.58]
[1749300679204,26.37147375,152.31,152.28,40.58]
[1749300679814,26.37147375,152.31,152.28,47.14677849]
[1749300680226,26.37147375,152.31,152.28,40.58]
[1749300680838,7.72182489,152.32,152.28,47.14675121]
[1749300681924,26.37147375,152.33,152.28,54.8685761]
[1749300682232,18.64964886,152.33,152.29,7.72182489]
[1749300682402,7.72182489,152.34,152.29,7.72182489]
[1749300683620,7.72182489,152.34,152.3,6.56598818]
[1749300688630,18.64964886,152.34,152.3,6.56598818]
[1749300688823,33.72182489,152.35,152.3,14.28781307]
[1749300689132,7.72182489,152.34,152.3,14.28781307]
[1749300690341,25.21319775,152.36,152.3,14.28781307]
[1749300690342,18.64964886,152.36,152.32,7.72182489]
[1749300690624,18.64964886,152.36,152.33,40.58]
[1749300691134,26.37147375,152.36,152.33,40.58]
[1749300692122,7.72182489,152.35,152.33,40.58]
[1749300693937,14.28596898,152.35,152.33,40.58]
[1749300694743,7.72182489,152.35,152.33,40.58]
[1749300695112,32.93502254,152.36,152.33,40.58]
[1749300700858,7.72182489,152.35,152.33,40.58]
[1749300707084,14.2859235,152.35,152.33,40.58]
[1749300708070,26.37147375,152.34,152.33,40.58]
[1749300708272,32.93573789,152.34,152.33,40.58]
[1749300709163,30.16050306,152.34,152.33,40.58]
[1749300709370,30.16050306,152.34,152.32,40.54]
[1749300711161,32.94241818,152.34,152.32,40.54]
[1749300713654,7.72850518,152.33,152.32,40.54]
[1749300714072,32.9428491,152.33,152.32,40.54]
[1749300716280,26.37815404,152.33,152.32,40.54]
[1749300716690,32.9428491,152.33,152.32,40.54]
[1749300716882,26.37815404,152.33,152.32,40.54]
[1749300718567,18.64964886,152.33,152.32,40.54]
[1749300728716,18.64964886,152.33,152.28,8.2268]
[1749300728717,18.64964886,152.32,152.28,8.2268]
[1749300728999,6.56555708,152.31,152.29,40.52]
[1749300729197,32.94340775,152.32,152.29,40.52]
[1749300729382,26.37815404,152.32,152.27,14.29571052]
[1749300729582,26.37815404,152.32,152.28,40.52]
[1749300730393,26.37815404,152.32,152.28,47.08672412]
[1749300730780,6.56398495,152.35,152.29,7.72850518]
[1749300731096,7.72850518,152.36,152.31,7.72850518]
[1749300731300,18.64964886,152.36,152.32,45.46463133]
[1749300731678,18.64964886,152.37,152.33,4.94463133]
[1749300732393,23.59428019,152.37,152.32,45.46463133]
[1749300733185,26.37476419,152.37,152.32,54.80981522]
[1749300736301,32.93773672,152.37,152.32,54.80981522]
[1749300738406,7.72511533,152.36,152.32,54.80981522]
[1749300739004,32.93773672,152.37,152.32,54.80981522]
[1749300743115,7.72511533,152.36,152.32,54.80981522]
[1749300745906,25.21262139,152.37,152.32,54.80981522]
[1749300746111,7.72511533,152.36,152.32,54.80981522]
[1749300747215,7.72511533,152.36,152.32,47.08469989]
[1749300749442,18.64964886,152.37,152.32,54.80981522]
[1749300749625,7.72511533,152.36,152.32,54.80981522]
[1749300752446,7.72511533,152.36,152.32,47.08469989]
[1749300752661,7.72511533,152.36,152.32,54.80981522]
[1749300752843,7.72511533,152.36,152.32,47.08469989]
[1749300753030,7.72511533,152.36,152.32,54.80981522]
[1749300753230,4.94480067,152.36,152.32,52.02950056]
[1749300760662,23.59444953,152.37,152.32,52.02950056]
[1749300761165,30.1574791,152.37,152.32,52.02950056]
[1749300761860,23.59444953,152.37,152.32,52.02950056]
[1749300762069,23.59444953,152.37,152.33,4.94480067]
[1749300762766,23.59444953,152.37,152.32,47.08469989]
[1749300762944,23.59444953,152.37,152.33,4.94480067]
[1749300764270,23.69572953,152.39,152.34,4.94480067]
[1749300765241,18.75092886,152.39,152.34,4.94480067]
[1749300765443,23.69572953,152.39,152.34,4.94480067]
[1749300765658,30.25787335,152.39,152.34,4.94480067]
[1749300766334,30.25787335,152.39,152.34,11.50892571]
[1749300767669,4.94480067,152.38,152.34,11.50892571]
[1749300768553,6.56259365,152.38,152.33,4.94480067]
[1749300768754,18.75092886,152.39,152.36,4.94480067]
[1749300768976,23.69572953,152.39,152.36,40.48]
[1749300769146,30.25784488,152.39,152.36,40.48]
[1749300769674,4.94480067,152.38,152.36,40.48]
[1749300772862,11.50738712,152.38,152.36,40.48]
[1749300780870,30.25795912,152.39,152.36,40.48]
[1749300781758,23.69572953,152.39,152.36,40.48]
[1749300782268,18.75092886,152.39,152.36,40.48]
[1749300782473,0.10128,152.39,152.36,51.98811286]
[1749300784171,0.10128,152.39,152.36,45.42480067]
[1749300784668,0.10128,152.39,152.36,51.98809793]
[1749300784881,0.10128,152.39,152.36,45.42480067]
[1749300785768,0.10128,152.39,152.36,40.48]
[1749300787195,5.04608067,152.39,152.36,40.48]
[1749300789505,0.10128,152.39,152.36,47.04338953]
[1749300791792,0.10128,152.39,152.37,4.94480067]
[1749300792183,0.10128,152.39,152.38,4.94480067]
[1749300794180,0.10128,152.39,152.37,4.94480067]
[1749300796577,6.66344478,152.39,152.36,45.42480067]
[1749300796983,0.10128,152.39,152.36,40.48]
[1749300797394,6.66343951,152.39,152.34,6.4603]
[1749300797688,11.60824018,152.39,152.35,40.44]
[1749300797894,4.94480067,152.38,152.35,40.44]
[1749300799192,11.50742253,152.38,152.34,4.94480067]
[1749300799394,11.50742253,152.38,152.36,40.42]
[1749300800295,5.04608067,152.39,152.36,40.42]
[1749300800497,18.75092886,152.39,152.36,40.42]
[1749300800975,25.31306459,152.39,152.36,40.42]
[1749300801398,18.75092886,152.39,152.36,40.42]
[1749300805383,0.10128,152.39,152.36,40.42]
[1749300805584,0.10128,152.39,152.36,45.36480067]
[1749300805910,0.10128,152.39,152.36,46.9833385]
[1749300810307,0.10128,152.39,152.36,51.92813917]
[1749300814094,0.10128,152.39,152.37,5.22912381]
[1749300814291,0.10128,152.39,152.38,4.94480067]
[1749300815289,0.10128,152.39,152.38,5.22912381]
[1749300816517,0.10128,152.39,152.38,11.79166482]
[1749300817090,0.10128,152.39,152.38,18.17976482]
[1749300817488,0.10128,152.39,152.38,36.82941368]
[1749300822113,13.12397202,152.48,152.41,26.0]
[1749300822300,13.12397202,152.48,152.44,4.94480067]
[1749300823512,13.12397202,152.48,152.43,4.94480067]
[1749300824719,11.50352012,152.47,152.43,4.94480067]
[1749300824911,4.94480067,152.46,152.42,40.4]
[1749300826915,11.50392029,152.46,152.42,40.4]
[1749300828618,4.94480067,152.46,152.42,45.34480067]
[1749300829197,4.94480067,152.47,152.43,4.94480067]
[1749300830116,6.56560067,152.48,152.43,11.50476449]
[1749300831808,6.56560067,152.48,152.44,4.94480067]
[1749300832231,6.56560067,152.48,152.44,11.50455485]
[1749300833704,4.94480067,152.49,152.45,4.94480067]
[1749300834117,4.94480067,152.49,152.45,11.50418583]
[1749300834725,4.94480067,152.49,152.45,6.55938516]
[1749300835298,4.94480067,152.49,152.44,11.50458675]
[1749300835299,11.50278942,152.49,152.44,11.50458675]
[1749300839926,6.55798875,152.49,152.44,11.50458675]
[1749300840129,11.50278942,152.49,152.44,11.50458675]
[1749300841522,4.94480067,152.48,152.44,11.50458675]
[1749300842129,1.6157,152.51,152.45,4.94480067]
[1749300842317,4.94480067,152.5,152.46,4.94480067]
[1749300842515,4.94480067,152.5,152.47,40.36]
[1749300843443,23.59444953,152.52,152.47,45.30480067]
[1749300844534,4.94480067,152.51,152.47,51.86345567]
[1749300844838,11.50176342,152.51,152.47,45.30480067]
[1749300845232,25.20627536,152.52,152.47,51.86342152]
[1749300845423,6.55565753,152.54,152.48,4.94480067]
[1749300845628,11.5004582,152.54,152.49,4.94480067]
[1749300846405,11.5004582,152.54,152.47,57.43862085]
[1749300846633,11.5004582,152.54,152.49,4.94480067]
[1749300847038,11.5004582,152.54,152.49,11.50253425]
[1749300848733,4.94480067,152.53,152.49,11.50253425]
[1749300849328,7.70825725,152.53,152.49,14.26599083]
[1749300851149,7.70825725,152.5,152.45,7.70825725]
[1749300851450,7.70825725,152.49,152.46,40.34]
[1749300852231,7.70825725,152.48,152.46,40.34]
[1749300852754,7.70825725,152.47,152.45,40.34]
[1749300853756,14.26650025,152.48,152.45,40.34]
[1749300855149,7.70825725,152.48,152.45,40.34]
[1749300855356,26.35790611,152.49,152.45,46.89949307]
[1749300855651,7.70825725,152.49,152.45,54.60775032]
[1749300857649,7.70825725,152.5,152.45,54.60775032]
[1749300859664,25.20616603,152.52,152.45,54.60775032]
[1749300859856,7.70825725,152.5,152.45,54.60775032]
[1749300860156,26.0,152.53,152.45,54.60775032]
[1749300860157,6.55623708,152.53,152.47,7.70825725]
[1749300860354,7.70825725,152.53,152.48,7.70825725]
[1749300860558,7.70825725,152.53,152.49,40.34]
[1749300861658,7.70825725,152.53,152.49,46.89777117]
[1749300862564,14.26439285,152.53,152.49,40.34]
[1749300862867,7.70825725,152.52,152.49,40.34]
[1749300863871,7.70825725,152.51,152.49,40.34]